bitfinex-derivatives/quotes_BTCF0:USTF0_20210111
["timestamp","ask_amount","ask_price","bid_price","bid_amount"]
[1610381731476,0.23046608,31053.0,31008.0,0.07201]
[1610381732078,0.09414,31053.0,31008.0,0.07201]
[1610381733379,0.09414,31053.0,31012.0,0.2347]
[1610381733578,0.09414,31053.0,31012.0,0.195]
[1610381733779,0.09414,31053.0,30962.0,1.0]
[1610381734182,0.0959,31052.0,30962.0,1.0]
[1610381734581,0.0959,31052.0,30983.0,0.36617194]
[1610381734783,0.0836069,31030.0,30983.0,0.36617194]
[1610381734993,0.1643069,31030.0,30983.0,0.29417194]
[1610381735180,1.5,30999.0,30983.0,0.17147194]
[1610381735380,1.5,30999.0,30879.0,2.71747746]
[1610381735381,1.5,30999.0,30862.0,2.17450483]
[1610381735781,1.5,30983.0,30862.0,2.17450483]
[1610381735981,1.5,30983.0,30864.0,2.17523702]
[1610381735982,0.0972,30982.0,30864.0,2.17523702]
[1610381736182,0.16884,30982.0,30864.0,2.17523702]
[1610381736383,0.16884,30982.0,30858.0,1.0]
[1610381736583,0.13632608,30915.0,30858.0,1.0]
[1610381737182,0.08791,30926.0,30858.0,1.0]
[1610381737384,0.08791,30926.0,30858.0,1.09195]
[1610381737786,0.08791,30926.0,30858.0,0.09195]
[1610381738584,0.08791,30926.0,30892.0,0.13632608]
[1610381738784,0.08791,30926.0,30892.0,0.23300608]
[1610381738984,0.0958,30957.0,30892.0,0.23300608]
[1610381739183,4.9839,30964.0,30892.0,0.23300608]
[1610381739585,4.9839,30964.0,30940.0,1.0]
[1610381739784,4.9839,30964.0,30940.0,1.10734]
[1610381739986,4.9839,30964.0,30941.0,0.0958]
[1610381740185,0.0975,31035.0,30940.0,1.10734]
[1610381740384,0.0975,31026.0,30940.0,1.10734]
[1610381740583,1.0,31064.0,30940.0,1.10734]
[1610381740985,0.13632608,30987.0,30940.0,1.10734]
[1610381741187,0.20566608,30987.0,30940.0,1.10734]
[1610381741386,0.20566608,30987.0,30940.0,1.0]
[1610381741585,0.20566608,30987.0,30892.0,0.09668]
[1610381741586,1.0,30984.0,30892.0,0.09668]
[1610381741985,1.0,30984.0,30861.0,1.0]
[1610381742388,1.5,30983.0,30861.0,1.0]
[1610381743386,0.1015162,30940.0,30861.0,1.0]
[1610381743588,1.0,30911.0,30800.0,0.49525176]
[1610381743788,1.08953,30911.0,30800.0,0.49525176]
[1610381743988,1.08953,30911.0,30787.0,1.0]
[1610381743989,1.5,30910.0,30789.0,2.18295332]
[1610381744189,1.5,30910.0,30789.0,2.48035332]
[1610381744389,1.5,30910.0,30789.0,0.2974]
[1610381745191,1.08953,30911.0,30864.0,0.38301938]
[1610381745595,0.08953,30911.0,30864.0,0.29801938]
[1610381745793,0.08953,30911.0,30864.0,0.19971938]
[1610381745991,0.13632608,30865.0,30864.0,0.04811938]
[1610381746397,0.10727,30871.0,30849.0,0.08998]
[1610381746593,0.10727,30871.0,30836.0,0.10586]
[1610381746794,0.10727,30871.0,30836.0,0.04806]
[1610381746993,0.10727,30871.0,30836.0,6e-05]
[1610381747191,0.09727,30871.0,30836.0,6e-05]
[1610381747391,0.5249,30865.0,30837.0,0.0968]
[1610381747591,0.5249,30865.0,30836.0,6e-05]
[1610381747991,0.5249,30865.0,30856.0,0.13632608]
[1610381748392,0.5249,30865.0,30850.0,0.09961]
[1610381748992,0.5149,30865.0,30850.0,0.09961]
[1610381749192,0.5149,30865.0,30836.0,6e-05]
[1610381750396,0.08953,30911.0,30836.0,6e-05]
[1610381750594,0.08034,30940.0,30836.0,6e-05]
[1610381750595,0.21666608,30940.0,30910.0,0.13632608]
[1610381750795,1.5,30998.0,30910.0,0.22306608]
[1610381750994,2.63914531,31017.0,30910.0,0.22306608]
[1610381751196,0.0776,30937.0,30910.0,0.22306608]
[1610381751395,0.0129,30937.0,30910.0,0.22306608]
[1610381751593,2.68575455,31057.0,30936.0,1.0]
[1610381751794,0.0977,31056.0,30936.0,1.10169]
[1610381751993,0.17093,31056.0,30936.0,1.10169]
[1610381752395,0.07323,31056.0,30936.0,1.10169]
[1610381752595,0.07323,31056.0,31021.0,0.13632608]
[1610381752795,0.07323,31056.0,31005.0,0.07813]
[1610381753195,0.07323,31056.0,31005.0,0.03903]
[1610381753395,0.07323,31056.0,30936.0,1.10169]
[1610381753796,1.5,31036.0,30936.0,0.10169]
[1610381753998,1.6028,31036.0,30936.0,0.10169]
[1610381754398,1.6028,31036.0,30936.0,0.07389]
[1610381754999,0.13632608,30966.0,30952.0,0.13632608]
[1610381755200,0.07764,30969.0,30952.0,0.13632608]
[1610381755800,0.07764,30969.0,30950.0,0.10702]
[1610381756000,0.09943,30986.0,30950.0,0.10702]
[1610381756799,0.09943,30986.0,30941.0,1.0]
[1610381758301,0.09943,30986.0,30910.0,0.08674]
[1610381758501,0.09943,30986.0,30904.0,1.0]
[1610381759302,0.09943,30986.0,30947.0,0.13632608]
[1610381759703,0.09943,30986.0,30929.0,0.10591]
[1610381760303,4.8086,30998.0,30932.0,1.0]
[1610381760502,0.11235,30986.0,30932.0,1.0]
[1610381761304,0.13632608,30969.0,30954.0,0.13632608]
[1610381761504,0.23380608,30969.0,30954.0,0.13632608]
[1610381761704,0.09748,30969.0,30932.0,1.0]
[1610381762303,0.09748,30969.0,30929.0,0.10591]
[1610381762905,0.09748,30969.0,30929.0,0.05281]
[1610381763104,0.09748,30969.0,30929.0,0.01321]
[1610381763504,0.09748,30969.0,30951.0,0.13632608]
[1610381763704,0.09748,30969.0,30929.0,0.00871]
[1610381764406,0.09748,30969.0,30907.0,0.0299]
[1610381765605,0.09748,30969.0,30893.0,0.9815]
[1610381766005,0.13632608,30918.0,30914.0,0.13632608]
[1610381766205,0.09602,30942.0,30887.0,4.7734]
[1610381766406,0.09602,30942.0,30887.0,4.84722]
[1610381767207,0.09748,30969.0,30887.0,4.84722]
[1610381767406,0.11235,30986.0,30887.0,4.84722]
[1610381767606,1.5,30997.0,30887.0,4.84722]
[1610381768006,1.5,30979.0,30887.0,4.84722]
[1610381768207,0.07066,30979.0,30887.0,4.84722]
[1610381768407,5.1228,30977.0,30887.0,0.07382]
[1610381768807,5.1228,30977.0,30887.0,0.50976744]
[1610381769808,0.0920442,30967.0,30887.0,0.50976744]
[1610381770007,0.13632608,30888.0,30887.0,0.40396744]
[1610381770208,0.13632608,30888.0,30887.0,0.31696744]
[1610381771409,0.07425,30901.0,30887.0,0.31696744]
[1610381772011,0.13632608,30888.0,30887.0,0.40619744]
[1610381772409,0.13632608,30888.0,30887.0,0.35779744]
[1610381773009,0.08063,30914.0,30887.0,0.35779744]
[1610381774010,0.13632608,30888.0,30887.0,0.35779744]
[1610381774410,0.13632608,30888.0,30887.0,0.34159744]
[1610381774611,0.11019,30896.0,30887.0,0.22036744]
[1610381774810,0.11019,30896.0,30887.0,0.33207744]
[1610381775511,0.11019,30896.0,30887.0,0.28357744]
[1610381775710,0.11019,30896.0,30887.0,0.26467744]
[1610381775911,0.11284,30905.0,30887.0,0.07496744]
[1610381776511,0.13632608,30888.0,30887.0,0.07496744]
[1610381776911,0.13632608,30888.0,30887.0,0.04246744]
[1610381777313,0.11284,30905.0,30887.0,0.04246744]
[1610381777913,0.11284,30905.0,30894.0,1.0]
[1610381778111,1.0,30909.0,30894.0,1.07742]
[1610381778512,0.13632608,30895.0,30894.0,1.07742]
[1610381779313,0.13632608,30895.0,30894.0,1.0]
[1610381779514,0.0855,30905.0,30894.0,1.0]
[1610381779913,0.0855,30905.0,30904.0,1.0]
[1610381780313,0.08063,30914.0,30904.0,1.0]
[1610381780514,4.2287,30925.0,30904.0,1.0]
[1610381780715,0.13632608,30905.0,30904.0,1.0]
[1610381780915,0.24435608,30905.0,30904.0,1.0]
[1610381781318,0.10803,30905.0,30904.0,1.0]
[1610381781915,0.07191,30920.0,30887.0,0.04246744]
[1610381782315,0.07191,30920.0,30887.0,6.744e-05]
[1610381782717,0.07191,30920.0,30863.0,0.09434]
[1610381782917,0.13632608,30864.0,30863.0,0.09434]
[1610381783319,0.08198,30866.0,30863.0,0.07654]
[1610381783519,0.08198,30866.0,30849.0,6.17864]
[1610381783718,0.08198,30866.0,30849.0,0.9772]
[1610381783919,0.08198,30866.0,30777.0,2.23463597]
[1610381784118,0.08198,30866.0,30790.0,1.0]
[1610381784318,0.08198,30866.0,30790.0,1.11253]
[1610381785920,0.08198,30866.0,30790.0,0.11253]
[1610381787121,0.08198,30866.0,30821.0,5.4219]
[1610381787323,0.08198,30866.0,30821.0,5.51537]
[1610381787521,0.13632608,30841.0,30840.0,0.13632608]
[1610381788123,0.10702,30875.0,30840.0,0.05202608]
[1610381788324,0.0962,30909.0,30840.0,0.13098608]
[1610381788523,0.0962,30909.0,30840.0,0.07898608]
[1610381788926,1.0,30919.0,30840.0,0.07898608]
[1610381789526,1.0,30919.0,30918.0,0.13632608]
[1610381789726,1.0,30919.0,30840.0,0.07896]
[1610381789727,1.0,30919.0,30906.0,0.07238]
[1610381789927,0.1044,30933.0,30906.0,0.07238]
[1610381791127,3.9352,30938.0,30906.0,0.07238]
[1610381792129,0.03,30910.0,30906.0,0.07238]
[1610381792732,0.06958,30939.0,30906.0,0.07238]
[1610381793131,0.06958,30939.0,30906.0,0.06238]
[1610381793631,0.03,30947.0,30906.0,0.06238]
[1610381794034,0.13632608,30945.0,30906.0,0.06238]
[1610381794232,0.21953608,30945.0,30906.0,0.06238]
[1610381794433,0.21953608,30945.0,30896.0,1.0]
[1610381794633,0.08321,30945.0,30896.0,1.0]
[1610381794832,0.08321,30945.0,30896.0,0.7952]
[1610381795033,0.08321,30945.0,30866.0,3.8747]
[1610381795235,0.0978,30944.0,30866.0,3.8747]
[1610381795635,0.0978,30944.0,30833.0,2.29105345]
[1610381796034,0.0978,30944.0,30853.0,0.13632608]
[1610381796234,0.01,30896.0,30853.0,0.20480608]
[1610381796436,0.09188,30896.0,30853.0,0.20480608]
[1610381797235,0.09188,30896.0,30855.0,1.0]
[1610381798038,0.09188,30896.0,30895.0,0.13632608]
[1610381798238,0.09188,30896.0,30878.0,0.11026]
[1610381799139,0.09188,30896.0,30855.0,1.0]
[1610381799341,0.09188,30896.0,30853.0,0.06848]
[1610381799539,0.015,30855.0,30853.0,0.06848]
[1610381799939,0.015,30855.0,30854.0,0.13632608]
[1610381800839,0.09647,30888.0,30854.0,0.13632608]
[1610381801241,0.09647,30888.0,30843.0,3.9035]
[1610381802042,0.13632608,30844.0,30843.0,3.9035]
[1610381802242,0.11011,30850.0,30843.0,3.9035]
[1610381803242,0.11011,30850.0,30849.0,6.0]
[1610381803443,0.8,30887.0,30849.0,6.0]
[1610381803842,0.09647,30888.0,30843.0,3.9035]
[1610381804043,0.13632608,30866.0,30843.0,3.9035]
[1610381804242,0.23048608,30866.0,30843.0,3.9035]
[1610381805642,0.09416,30866.0,30843.0,3.9035]
[1610381805844,4.2071,30863.0,30828.0,0.05291]
[1610381806042,4.2071,30863.0,30828.0,0.04961]
[1610381806242,4.2071,30863.0,30829.0,0.13632608]
[1610381806442,4.2071,30863.0,30828.0,0.00381]
[1610381807443,4.2071,30863.0,30794.0,4.4927]
[1610381808244,0.13632608,30850.0,30838.0,0.13632608]
[1610381808649,0.22191608,30850.0,30838.0,0.13632608]
[1610381808845,0.08559,30850.0,30794.0,4.4927]
[1610381810047,0.07693,30861.0,30794.0,4.4927]
[1610381812649,0.17543,30861.0,30794.0,4.4927]
[1610381813949,0.84703,30861.0,30790.0,0.11253]
[1610381814149,0.84703,30861.0,30753.0,2.29066598]
[1610381814150,0.17543,30861.0,30753.0,2.29066598]
[1610381814351,0.17543,30861.0,30752.0,2.10013043]
[1610381814750,1.67543,30861.0,30769.0,0.13632608]
[1610381814952,1.67543,30861.0,30769.0,0.21683608]
[1610381815150,1.67543,30861.0,30769.0,0.08051]
[1610381815350,4.7312,30831.0,30769.0,0.08051]
[1610381815550,4.7312,30831.0,30769.0,1e-05]
[1610381815950,4.7312,30831.0,30770.0,0.0974]
[1610381816350,4.7312,30831.0,30770.0,0.0539]
[1610381816553,0.098,30830.0,30770.0,0.0539]
[1610381816751,0.13632608,30771.0,30769.0,0.13633608]
[1610381816951,4.7312,30831.0,30748.0,4.3]
[1610381817151,4.7312,30831.0,30748.0,4.4093]
[1610381817851,0.0984,30830.0,30748.0,4.4093]
[1610381818653,0.0984,30830.0,30829.0,0.13632608]
[1610381818853,0.0984,30830.0,30829.0,0.10243]
[1610381819054,1.0,30856.0,30829.0,0.10243]
[1610381819855,2.94449437,30926.0,30829.0,0.10243]
[1610381820257,2.95745645,30938.0,30829.0,0.10243]
[1610381820855,0.13632608,30885.0,30884.0,0.13632608]
[1610381821054,0.09934,30910.0,30829.0,0.10243]
[1610381822256,0.0967,30904.0,30818.0,0.07808]
[1610381822455,0.11059,30896.0,30818.0,0.07808]
[1610381822656,0.0920442,30889.0,30818.0,0.07808]
[1610381822856,0.13632608,30819.0,30809.0,0.91528]
[1610381823055,0.13632608,30819.0,30756.0,2.29547853]
[1610381823254,0.13632608,30819.0,30751.0,2.29562283]
[1610381823654,0.13632608,30819.0,30748.0,0.1093]
[1610381823854,0.13632608,30819.0,30746.0,1.0]
[1610381824455,0.08934,30831.0,30746.0,1.0]
[1610381824855,0.08934,30831.0,30746.0,1.10807]
[1610381825057,0.13632608,30794.0,30783.0,0.13632608]
[1610381825259,0.13632608,30794.0,30747.0,1.0]
[1610381825459,0.08934,30831.0,30747.0,1.0]
[1610381826402,5.4117,30840.0,30747.0,1.0]
[1610381826964,0.13632608,30791.0,30786.0,0.13632608]
[1610381827166,5.4117,30840.0,30747.0,1.0]
[1610381827368,5.4117,30840.0,30746.0,0.10807]
[1610381828161,5.4117,30840.0,30746.0,1.60807]
[1610381828362,5.4117,30840.0,30747.0,2.11162383]
[1610381828762,1.0,30862.0,30764.0,4.8669]
[1610381828966,1.0,30862.0,30764.0,4.962]
[1610381829360,5.315,30886.0,30825.0,0.13632608]
[1610381829562,5.315,30886.0,30825.0,0.23668608]
[1610381830365,5.315,30886.0,30825.0,0.10036]
[1610381831370,0.13632608,30831.0,30825.0,0.10036]
[1610381831764,0.13632608,30831.0,30779.0,1.0]
[1610381831765,0.24659608,30831.0,30779.0,1.0]
[1610381832366,0.11027,30831.0,30779.0,1.0]
[1610381832766,0.096,30830.0,30779.0,1.0]
[1610381833267,0.096,30830.0,30766.0,0.03]
[1610381833468,0.13632608,30786.0,30774.0,0.13632608]
[1610381833868,0.11027,30831.0,30774.0,0.13632608]
[1610381834068,0.11027,30831.0,30774.0,0.20746608]
[1610381834069,5.3446,30815.0,30774.0,0.20746608]
[1610381834268,5.3446,30815.0,30774.0,0.07114]
[1610381835470,0.13632608,30807.0,30774.0,0.07114]
[1610381835869,0.23352608,30807.0,30774.0,0.07114]
[1610381836270,0.23352608,30807.0,30774.0,0.06114]
[1610381836271,0.0972,30807.0,30774.0,0.06114]
[1610381836671,0.0971,30814.0,30774.0,0.06114]
[1610381836872,5.3446,30815.0,30774.0,0.06114]
[1610381837473,0.13632608,30797.0,30779.0,0.13632608]
[1610381837673,0.13632608,30797.0,30774.0,0.06114]
[1610381838271,0.13632608,30797.0,30774.0,0.01194]
[1610381838871,0.13632608,30797.0,30766.0,0.02224]
[1610381839473,4.1532,30816.0,30766.0,0.02224]
[1610381839873,4.1532,30816.0,30766.0,0.01634]
[1610381840474,0.0965,30815.0,30766.0,0.01634]
[1610381841685,4.1532,30816.0,30799.0,0.13632608]
[1610381842084,4.1532,30816.0,30799.0,0.23444608]
[1610381842478,4.1532,30816.0,30799.0,0.09812]
[1610381842878,0.098,30815.0,30799.0,0.09812]
[1610381843281,0.098,30815.0,30766.0,0.01634]
[1610381843680,0.13632608,30767.0,30766.0,0.01634]
[1610381844481,0.10669,30810.0,30766.0,0.01634]
[1610381844681,0.10669,30810.0,30764.0,0.01234]
[1610381844881,0.10669,30810.0,30747.0,0.28192708]
[1610381844882,0.0959,30809.0,30747.0,0.28192708]
[1610381845081,0.0959,30809.0,30746.0,0.02949708]
[1610381845282,0.0959,30809.0,30720.0,0.07485446]
[1610381845683,0.0959,30809.0,30754.0,0.13632608]
[1610381845884,0.0959,30809.0,30754.0,0.20500608]
[1610381846084,0.0979,30808.0,30754.0,0.20500608]
[1610381846883,0.0979,30808.0,30754.0,0.06868]
[1610381847084,0.0979,30808.0,30754.0,0.04188]
[1610381847284,0.0979,30808.0,30720.0,0.07485446]
[1610381847686,0.0979,30808.0,30746.0,0.13632608]
[1610381847883,0.0979,30808.0,30746.0,0.22321608]
[1610381848083,0.0979,30808.0,30746.0,0.08689]
[1610381848283,0.0979,30808.0,30746.0,0.08029]
[1610381848486,0.0979,30808.0,30746.0,0.01629]
[1610381848683,0.0979,30808.0,30720.0,0.07485446]
[1610381849285,0.0979,30808.0,30745.0,1.0]
[1610381849286,1.0,30761.0,30745.0,1.0]
[1610381850087,1.0,30761.0,30745.0,0.9052]
[1610381850286,1.0,30761.0,30745.0,0.8506]
[1610381850487,0.0985,30760.0,30720.0,0.07485446]
[1610381850886,0.0985,30760.0,30703.0,0.0989]
[1610381851686,0.13632608,30738.0,30729.0,0.13632608]
[1610381852087,0.0985,30760.0,30690.0,2.28752099]
[1610381852288,0.0985,30760.0,30690.0,0.08983]
[1610381853087,5.3903,30752.0,30690.0,0.08983]
[1610381853287,0.0961,30751.0,30690.0,0.08983]
[1610381856489,0.0961,30751.0,30713.0,0.13632608]
[1610381856691,0.0961,30751.0,30713.0,0.07576]
[1610381858292,0.0961,30751.0,30714.0,0.0982]
[1610381859192,0.0961,30751.0,30713.0,0.07576]
[1610381860293,0.0961,30751.0,30714.0,0.0984]
[1610381860994,0.0961,30751.0,30713.0,0.07576]
[1610381861395,0.13632608,30720.0,30713.0,0.07576]
[1610381861795,0.13632608,30720.0,30690.0,0.08983]
[1610381861997,0.13632608,30720.0,30677.0,2.11157923]
[1610381862196,0.13632608,30720.0,30674.0,2.11176147]
[1610381862397,0.13632608,30720.0,30695.0,4.8976]
[1610381862598,0.0984,30719.0,30695.0,0.09876]
[1610381865398,0.0984,30719.0,30713.0,0.13632608]
[1610381865599,0.0984,30719.0,30713.0,0.08]
[1610381865798,0.0984,30719.0,30713.0,0.0745]
[1610381865998,0.0984,30719.0,30695.0,0.09876]
[1610381867398,0.0984,30719.0,30700.0,0.13632608]
[1610381867598,0.0984,30719.0,30695.0,0.09876]
[1610381867800,0.0984,30719.0,30664.0,2.1124479]
[1610381868002,0.0984,30719.0,30665.0,2.11242234]
[1610381868200,0.0984,30719.0,30665.0,2.18512234]
[1610381868801,0.0984,30719.0,30666.0,0.0982]
[1610381869503,0.0984,30719.0,30668.0,2.11236853]
[1610381869704,0.0984,30719.0,30669.0,0.099]
[1610381870503,0.0984,30719.0,30667.0,2.11263036]
[1610381870903,0.0984,30719.0,30665.0,0.0727]
[1610381871306,0.0984,30719.0,30666.0,2.11292357]
[1610381871504,0.0984,30719.0,30666.0,2.21092357]
[1610381871704,0.0984,30719.0,30666.0,0.098]
[1610381871906,0.0984,30719.0,30667.0,2.11346663]
[1610381872305,0.0984,30719.0,30665.0,2.18708223]
[1610381872705,0.0984,30719.0,30665.0,0.0727]
[1610381873206,0.0984,30719.0,30705.0,0.13632608]
[1610381873406,0.0984,30719.0,30706.0,0.0978]
[1610381873807,0.0984,30719.0,30705.0,0.08206]
[1610381874206,0.0984,30719.0,30661.0,2.11298417]
[1610381874409,0.0984,30719.0,30661.0,0.0973]
[1610381874808,0.0984,30719.0,30661.0,2.20968224]
[1610381875006,0.0984,30719.0,30663.0,2.11228808]
[1610381875207,0.0984,30719.0,30709.0,0.13632608]
[1610381875410,0.0984,30719.0,30709.0,0.23527608]
[1610381875810,0.0984,30719.0,30709.0,0.09895]
[1610381876008,0.0984,30719.0,30709.0,0.09055]
[1610381877210,0.13632608,30710.0,30709.0,0.09055]
[1610381877412,0.0984,30719.0,30709.0,5e-05]
[1610381879715,5.2625,30731.0,30709.0,5e-05]
[1610381879915,0.13632608,30724.0,30722.0,0.13632608]
[1610381880116,5.2625,30731.0,30709.0,5e-05]
[1610381880514,5.2625,30731.0,30673.0,1.0]
[1610381880715,0.0963,30730.0,30673.0,1.0]
[1610381881115,0.0963,30730.0,30688.0,5.2384]
[1610381881316,0.0963,30730.0,30688.0,5.3146]
[1610381881720,0.0963,30730.0,30689.0,0.0985]
[1610381882118,0.0963,30730.0,30722.0,0.13632608]
[1610381882316,0.0963,30730.0,30722.0,0.21206608]
[1610381882716,0.0963,30730.0,30722.0,0.19336608]
[1610381882916,0.0963,30730.0,30722.0,0.10992]
[1610381884218,0.13632608,30723.0,30722.0,0.10992]
[1610381884821,0.13632608,30723.0,30715.0,1.0]
[1610381884822,0.13632608,30723.0,30715.0,0.99582]
[1610381885020,0.13632608,30723.0,30663.0,0.07301]
[1610381886420,0.0973,30722.0,30696.0,0.12432608]
[1610381886620,0.0973,30722.0,30688.0,0.0517]
[1610381886821,0.0973,30722.0,30663.0,0.07301]
[1610381887020,0.0973,30722.0,30655.0,2.12327492]
[1610381887224,0.0973,30722.0,30652.0,1.0]
[1610381887422,1.0,30698.0,30683.0,1.0]
[1610381888022,1.0,30698.0,30683.0,0.9155]
[1610381888223,0.0973,30722.0,30653.0,1.0]
[1610381888422,0.13632608,30695.0,30653.0,0.08126]
[1610381889025,0.13632608,30695.0,30643.0,1.31064754]
[1610381889226,0.097,30698.0,30645.0,2.12509977]
[1610381889427,0.097,30698.0,30640.0,2.12683068]
[1610381889829,0.097,30698.0,30638.0,2.12678342]
[1610381890228,0.097,30698.0,30637.0,2.12688354]
[1610381890431,0.13632608,30679.0,30669.0,0.13632608]
[1610381890628,0.099,30695.0,30669.0,0.13632608]
[1610381891030,0.099,30695.0,30669.0,0.04862608]
[1610381891230,0.099,30695.0,30669.0,2.608e-05]
[1610381892334,0.099,30695.0,30676.0,0.13632608]
[1610381892530,0.099,30695.0,30636.0,2.13038127]
[1610381893130,0.099,30695.0,30634.0,2.13132269]
[1610381893431,0.099,30695.0,30632.0,2.13185085]
[1610381893639,0.0278,30684.0,30632.0,2.13185085]
[1610381893831,0.099,30683.0,30630.0,0.07530904]
[1610381894231,0.17084,30683.0,30630.0,0.07530904]
[1610381894430,0.13632608,30674.0,30654.0,0.13632608]
[1610381894630,0.22795608,30674.0,30630.0,0.07530904]
[1610381894830,0.22795608,30674.0,30636.0,0.0985]
[1610381895032,0.22795608,30674.0,30630.0,0.07530904]
[1610381895435,0.09163,30674.0,30630.0,0.07530904]
[1610381895632,0.0991,30673.0,30630.0,0.07530904]
[1610381896436,0.13632608,30659.0,30630.0,0.03873512]
[1610381896634,0.07475,30659.0,30630.0,0.03873512]
[1610381897637,0.097,30658.0,30630.0,0.03873512]
[1610381898638,0.03732608,30658.0,30644.0,0.13632608]
[1610381898839,0.0989,30657.0,30644.0,0.13632608]
[1610381899038,0.0989,30657.0,30630.0,0.03873512]
[1610381899940,0.0989,30657.0,30630.0,0.02273512]
[1610381900142,0.0989,30657.0,30630.0,3.512e-05]
[1610381900540,0.07475,30659.0,30656.0,1.0]
[1610381900941,0.06465,30672.0,30656.0,0.9718]
[1610381901340,0.06465,30672.0,30671.0,0.12012608]
[1610381901540,1.0,30698.0,30671.0,0.12012608]
[1610381901740,1.0,30698.0,30671.0,0.18122608]
[1610381901941,1.0,30698.0,30671.0,0.0776]
[1610381902140,1.0,30698.0,30664.0,0.0976]
[1610381902542,1.0,30698.0,30658.0,6.0]
[1610381903245,0.2947,30707.0,30661.0,0.13632608]
[1610381903445,0.2947,30707.0,30649.0,0.0987]
[1610381903848,0.2947,30707.0,30628.0,0.10694]
[1610381904248,9.0498,30736.0,30628.0,0.10694]
[1610381904455,0.2997,30735.0,30628.0,0.10694]
[1610381905553,1.0,30695.0,30672.0,1.0]
[1610381905754,1.0,30695.0,30672.0,0.37112]
[1610381905952,1.0,30695.0,30630.0,0.08992512]
[1610381906165,1.0,30692.0,30630.0,0.08992512]
[1610381906363,1.0,30692.0,30630.0,3.512e-05]
[1610381907358,0.2725,30691.0,30630.0,3.512e-05]
[1610381907757,0.13632608,30686.0,30672.0,0.13632608]
[1610381907959,0.13632608,30686.0,30649.0,0.0973]
[1610381908157,0.2705,30695.0,30630.0,3.512e-05]
[1610381908358,0.0975,30686.0,30630.0,3.512e-05]
[1610381908557,0.07013,30686.0,30633.0,1.5]
[1610381909360,0.097,30695.0,30649.0,1.5]
[1610381911364,0.03753,30698.0,30649.0,1.5]
[1610381911766,0.03753,30698.0,30650.0,3.63336728]
[1610381912166,0.17385608,30698.0,30650.0,1.5]
[1610381912366,0.17385608,30698.0,30648.0,3.8196]
[1610381912568,0.13912,30698.0,30648.0,3.8196]
[1610381912966,0.13912,30698.0,30664.0,3.8028]
[1610381913169,0.13912,30698.0,30640.0,2.1344296]
[1610381913567,0.13912,30698.0,30642.0,2.13441482]
[1610381913967,0.13912,30698.0,30636.0,5.2614]
[1610381914167,0.13912,30698.0,30657.0,0.13632608]
[1610381914367,0.13912,30698.0,30657.0,0.08162608]
[1610381914567,0.13912,30698.0,30636.0,5.2614]
[1610381915770,0.13912,30698.0,30636.0,4.8529]
[1610381915968,0.13912,30698.0,30621.0,2.13657839]
[1610381916369,0.13912,30698.0,30619.0,2.13182584]
[1610381917273,0.13912,30698.0,30605.0,2.13345126]
[1610381917769,0.13912,30698.0,30607.0,2.1387458]
[1610381917969,0.13912,30698.0,30607.0,1.3354039]
[1610381918571,0.13912,30698.0,30601.0,0.08685]
[1610381918771,0.13912,30698.0,30606.0,3.9077]
[1610381918970,0.2844,30697.0,30606.0,4.00802]
[1610381919370,0.2844,30697.0,30607.0,1.5]
[1610381920172,0.2844,30697.0,30606.0,4.00802]
[1610381920372,0.2844,30697.0,30642.0,0.13632608]
[1610381920572,0.2844,30697.0,30618.0,0.07589]
[1610381921972,0.2844,30697.0,30618.0,0.04789]
[1610381922171,0.2844,30697.0,30606.0,4.00802]
[1610381922371,0.13632608,30635.0,30629.0,0.13632608]
[1610381922571,0.21282608,30635.0,30629.0,0.04682608]
[1610381922972,0.21282608,30635.0,30629.0,0.04032608]
[1610381923172,0.21282608,30635.0,30629.0,2.608e-05]
[1610381923372,0.21282608,30635.0,30606.0,4.00802]
[1610381923575,0.0974,30634.0,30606.0,4.00802]
[1610381924673,0.0974,30634.0,30624.0,0.13632608]
[1610381925077,0.0974,30634.0,30613.0,0.07175]
[1610381925277,0.0974,30634.0,30613.0,0.00785]
[1610381925476,0.0974,30634.0,30606.0,4.00802]
[1610381925977,0.0974,30634.0,30585.0,2.33360967]
[1610381926181,0.0974,30634.0,30584.0,2.33277056]
[1610381926578,0.0974,30634.0,30576.0,2.33199467]
[1610381926777,0.19974,30647.0,30632.0,0.13632608]
[1610381926977,0.00994,30634.0,30613.0,0.09797]
[1610381927177,0.08035,30634.0,30613.0,0.09797]
[1610381927778,0.17965,30634.0,30613.0,0.09797]
[1610381927977,0.08035,30634.0,30613.0,0.09797]
[1610381928378,0.08035,30634.0,30601.0,4.1381]
[1610381928781,0.13632608,30617.0,30601.0,4.1381]
[1610381928979,0.23800608,30617.0,30601.0,4.1381]
[1610381929179,0.10168,30617.0,30601.0,4.1381]
[1610381930482,0.0986,30616.0,30601.0,4.1381]
[1610381930784,0.0986,30616.0,30609.0,0.13632608]
[1610381931388,0.10168,30617.0,30609.0,0.13632608]
[1610381931584,0.10168,30617.0,30613.0,0.49639218]
[1610381932385,0.0992,30616.0,30613.0,0.49639218]
[1610381932585,0.10168,30617.0,30613.0,0.49639218]
[1610381932986,0.13632608,30614.0,30613.0,0.49639218]
[1610381933387,0.10168,30617.0,30613.0,0.49639218]
[1610381933787,0.0968,30616.0,30613.0,0.49639218]
[1610381933990,0.0968,30616.0,30613.0,0.09339218]
[1610381934788,0.0968,30616.0,30613.0,0.03239218]
[1610381934989,0.0968,30616.0,30613.0,0.02299218]
[1610381935388,0.0968,30616.0,30590.0,0.09525218]
[1610381935589,0.13632608,30591.0,30590.0,0.00645218]
[1610381935789,0.13632608,30591.0,30584.0,4.3688]
[1610381936391,1.0,30609.0,30584.0,4.3688]
[1610381936593,1.0,30609.0,30584.0,4.45606]
[1610381936789,0.0983,30608.0,30584.0,4.45606]